lending/lending_fUSD_20240120
["ID","MTS","AMOUNT","RATE_DAILY","PERIOD"]
[312252366,1705710644285,-500.0,0.00024657,2]
[312252367,1705710644295,-500.0,0.00024657,2]
[312252368,1705710644307,-500.0,0.00024657,2]
[312252369,1705710644317,-614.01,0.00024657,2]
[312252370,1705710644327,-500.0,0.00024657,2]
[312252371,1705710644337,-500.0,0.00024657,2]
[312252372,1705710644347,-500.0,0.00024657,2]
[312252373,1705710644357,-500.0,0.00024657,2]
[312252374,1705710644367,-500.0,0.00024657,2]
[312252375,1705710644377,-500.0,0.00024657,2]
[312252376,1705710644386,-500.0,0.00024657,2]
[312252377,1705710644396,-500.0,0.00024657,2]
[312252378,1705710644407,-500.0,0.00024657,2]
[312252379,1705710644416,-500.0,0.00024657,2]
[312252380,1705710644426,-500.0,0.00024657,2]
[312252381,1705710644436,-500.0,0.00024657,2]
[312252382,1705710644445,-500.0,0.00024657,2]
[312252383,1705710644455,-500.0,0.00024657,2]
[312252384,1705710644465,-500.0,0.00024657,2]
[312252385,1705710644475,-550.48,0.00024657,2]
[312252386,1705710644484,-500.0,0.00024657,2]
[312252387,1705710644494,-500.0,0.00024657,2]
[312252388,1705710644503,-500.0,0.00024657,2]
[312252389,1705710644513,-500.0,0.00024657,2]
[312252390,1705710644523,-500.0,0.00024657,2]
[312252391,1705710644532,-456.55851663,0.00024657,2]
[312252392,1705710644542,-500.0,0.00024657,2]
[312252393,1705710644554,-500.0,0.00024657,2]
[312252394,1705710644563,-500.0,0.00024657,2]
[312252395,1705710644572,-500.0,0.00024657,2]
[312252396,1705710644583,-505.17553014,0.00024657,2]
[312252397,1705710644593,-500.0,0.00024657,2]
[312252398,1705710644602,-500.0,0.00024657,2]
[312252399,1705710644611,-501.32880581,0.00024657,2]
[312252400,1705710644621,-500.0,0.00024657,2]
[312252401,1705710644630,-500.0,0.00024657,2]
[312252402,1705710644640,-500.0,0.00024657,2]
[312252403,1705710644649,-500.0,0.00024657,2]
[312252404,1705710644659,-500.0,0.00024657,2]
[312252405,1705710644670,-500.0,0.00024657,2]
[312252406,1705710644680,-500.0,0.00024657,2]
[312252407,1705710644690,-500.0,0.00024657,2]
[312252408,1705710644701,-500.0,0.00024657,2]
[312252409,1705710644712,-500.0,0.00024657,2]
[312252410,1705710644723,-833.56,0.00024657,2]
[312252411,1705710644732,-500.0,0.00024657,2]
[312252412,1705710644742,-4901.21,0.00024657,2]
[312252413,1705710644751,-500.0,0.00024657,2]
[312252414,1705710644761,-500.0,0.00024657,2]
[312252415,1705710644770,-500.0,0.00024657,2]
[312252416,1705710644779,-500.0,0.00024657,2]
[312252417,1705710644791,-500.00000057,0.00024657,2]
[312252418,1705710644803,-500.0,0.00024657,2]
[312252419,1705710644813,-500.0,0.00024657,2]
[312252420,1705710644823,-500.0,0.00024657,2]
[312252421,1705710644833,-500.0,0.00024657,2]
[312252422,1705710644843,-500.0,0.00024657,2]
[312252423,1705710644853,-500.0,0.00024657,2]
[312252424,1705710644862,-500.0,0.00024657,2]
[312252425,1705710644872,-500.0,0.00024657,2]
[312252426,1705710644882,-500.0,0.00024657,2]
[312252427,1705710644891,-500.0,0.00024657,2]
[312252428,1705710644902,-500.0,0.00024657,2]
[312252429,1705710644912,-500.0,0.00024657,2]
[312252430,1705710644921,-500.0,0.00024657,2]
[312252431,1705710644931,-714.56,0.00024657,2]
[312252432,1705710644941,-500.0,0.00024657,2]
[312252433,1705710644950,-500.0,0.00024657,2]
[312252434,1705710644960,-500.0,0.00024657,2]
[312252435,1705710644970,-500.0,0.00024657,2]
[312252436,1705710644980,-500.0,0.00024657,2]
[312252437,1705710644989,-3819.68,0.00024657,2]
[312252438,1705710644999,-500.0,0.00024657,2]
[312252439,1705710645009,-500.0,0.00024657,2]
[312252440,1705710645017,-500.0,0.00024657,2]
[312252441,1705710645027,-500.0,0.00024657,2]
[312252442,1705710645037,-500.0,0.00024657,2]
[312252443,1705710645047,-500.0,0.00024657,2]
[312252444,1705710645057,-500.0,0.00024657,2]
[312252445,1705710645067,-500.0,0.00024657,2]
[312252446,1705710645076,-995.12,0.00024657,2]
[312252447,1705710645088,-500.0,0.00024657,2]
[312252448,1705710645098,-500.0,0.00024657,2]
[312252449,1705710645108,-500.0,0.00024657,2]
[312252450,1705710645117,-500.0,0.00024657,2]
[312252451,1705710645128,-500.0,0.00024657,2]
[312252452,1705710645137,-500.0,0.00024657,2]
[312252453,1705710645147,-500.0,0.00024657,2]
[312252454,1705710645158,-500.0,0.00024657,2]
[312252455,1705710645168,-570.98489091,0.00024657,2]
[312252456,1705710645179,-500.0,0.00024657,2]
[312252457,1705710645190,-500.0,0.00024657,2]
[312252458,1705710645200,-500.0,0.00024657,2]
[312252459,1705710645210,-500.0,0.00024657,2]
[312252460,1705710645220,-821.06,0.00024657,2]
[312252461,1705710645229,-500.0,0.00024657,2]
[312252462,1705710645240,-500.0,0.00024657,2]
[312252463,1705710645250,-500.0,0.00024657,2]
[312252464,1705710645261,-500.0,0.00024657,2]
[312252465,1705710645271,-500.0,0.00024657,2]
[312252466,1705710645281,-500.0,0.00024657,2]
[312252467,1705710645290,-500.0,0.00024657,2]
[312252468,1705710645304,-500.0,0.00024657,2]
[312252469,1705710645313,-500.0,0.00024657,2]
[312252470,1705710645323,-500.0,0.00024657,2]
[312252471,1705710645332,-515.11,0.00024657,2]
[312252472,1705710645341,-545.2,0.00024657,2]
[312252473,1705710645352,-500.0,0.00024657,2]
[312252474,1705710645362,-500.0,0.00024657,2]
[312252475,1705710645372,-316.52723985,0.00024657,2]
[312252476,1705710645382,-563.66,0.00024657,2]
[312252477,1705710645391,-656.89,0.00024657,2]
[312252478,1705710645401,-500.0,0.00024657,2]
[312252479,1705710645412,-500.0,0.00024657,2]
[312252480,1705710645421,-500.0,0.00024657,2]
[312252481,1705710645431,-500.0,0.00024657,2]
[312252482,1705710645440,-622.99582578,0.00024657,2]
[312252483,1705710645450,-506.84,0.00024657,2]
[312252484,1705710645459,-188.34133813,0.00024657,2]
[312252485,1705710645469,-500.0,0.00024657,2]
[312252486,1705710645478,-500.0,0.00024657,2]
[312252487,1705710645488,-500.0,0.00024657,2]
[312252488,1705710645498,-500.0,0.00024657,2]
[312252489,1705710645508,-500.0,0.00024657,2]
[312252490,1705710645518,-500.0,0.00024657,2]
[312252491,1705710645710,-500.0,0.00024657,2]
[312252492,1705710645721,-833.32,0.00024657,2]
[312252493,1705710645730,-500.0,0.00024657,2]
[312252494,1705710645740,-500.0,0.00024657,2]
[312252495,1705710645749,-500.0,0.00024657,2]
[312252496,1705710645759,-500.0,0.00024657,2]
[312252497,1705710645770,-764.61,0.00024657,2]
[312252498,1705710645780,-500.0,0.00024657,2]
[312252499,1705710645789,-500.0,0.00024657,2]
[312252500,1705710645801,-374.99875917,0.00024657,2]
[312252502,1705710645811,-500.0,0.00024657,2]
[312252503,1705710645820,-500.0,0.00024657,2]
[312252505,1705710645830,-500.0,0.00024657,2]
[312252507,1705710645839,-500.0,0.00024657,2]
[312252509,1705710645849,-500.0,0.00024657,2]
[312252511,1705710645858,-500.0,0.00024657,2]
[312252514,1705710645868,-500.0,0.00024657,2]
[312252516,1705710645878,-500.0,0.00024657,2]
[312252517,1705710645888,-500.0,0.00024657,5]
[312252518,1705710645897,-500.0,0.00024657,2]
[312252519,1705710645907,-500.0,0.00024657,2]
[312252521,1705710645916,-500.0,0.00024657,2]
[312252523,1705710645925,-500.0,0.00024657,2]
[312252525,1705710645934,-500.0,0.00024657,2]
[312252527,1705710645944,-500.0,0.00024657,2]
[312252529,1705710645952,-500.0,0.00024657,2]
[312252531,1705710645961,-500.0,0.00024657,2]
[312252533,1705710645970,-500.0,0.00024657,2]
[312252535,1705710645979,-500.0,0.00024657,2]
[312252537,1705710645989,-500.0,0.00024657,2]
[312252539,1705710645998,-250.0,0.00024658,2]
[312252541,1705710646007,-150.0,0.00024661,2]
[312252543,1705710646016,-150.0,0.00024664,2]
[312252545,1705710646025,-150.0,0.00024666,2]
[312252547,1705710646034,-155.71,0.00024668,2]
[312252548,1705710646044,-150.0,0.00024669,2]
[312252550,1705710646055,-150.0,0.00024683,2]
[312252552,1705710646064,-150.0,0.00024684,2]
[312252554,1705710646074,-150.0,0.00024687,2]
[312252556,1705710646090,-150.0,0.00024688,2]
[312252557,1705710646099,-150.0,0.00024695,2]
[312252560,1705710646109,-945.36,0.00024706,2]
[312252562,1705710646118,-150.0,0.00024707,2]
[312252564,1705710646127,-150.0,0.00024707,2]
[312252566,1705710646137,-150.0,0.00024708,2]
[312252567,1705710646146,-150.0,0.00024725,2]
[312252569,1705710646156,-150.0,0.0002474,2]
[312252572,1705710646166,-150.0,0.00024754,2]
[312252574,1705710646176,-795.71,0.00024757,2]
[312252576,1705710646185,-500.0,0.00024757,2]
[312252578,1705710646195,-500.0,0.00024757,2]
[312252580,1705710646205,-500.0,0.00024757,2]
[312252582,1705710646214,-500.0,0.00024757,2]
[312252584,1705710646224,-500.0,0.00024757,2]
[312252586,1705710646234,-500.07,0.00024757,2]
[312252588,1705710646243,-500.0,0.00024757,2]
[312252590,1705710646253,-500.0,0.00024757,2]
[312252591,1705710646262,-500.0,0.00024757,2]
[312252592,1705710646271,-500.0,0.00024757,2]
[312252593,1705710646280,-500.0,0.00024757,2]
[312252594,1705710646290,-500.0,0.00024757,2]
[312252596,1705710646301,-500.0,0.00024757,2]
[312252598,1705710646310,-500.0,0.00024757,2]
[312252600,1705710646319,-500.0,0.00024757,2]
[312252603,1705710646328,-500.0,0.00024757,2]
[312252605,1705710646338,-500.0,0.00024757,2]
[312252606,1705710646347,-500.0,0.00024757,2]
[312252608,1705710646357,-500.0,0.00024757,2]
[312252611,1705710646366,-500.0,0.00024757,2]
[312252612,1705710646378,-500.0,0.00024757,2]
[312252615,1705710646387,-500.0,0.00024757,2]
[312252617,1705710646396,-681.83,0.00024757,2]
[312252619,1705710646405,-150.0,0.0002476,2]
[312252621,1705710646415,-150.0,0.0002476,2]
[312252623,1705710646424,-150.0,0.00024763,2]
[312252624,1705710646434,-150.0,0.00024765,2]
[312252625,1705710646444,-150.0,0.00024771,2]
[312252626,1705710646453,-150.0,0.00024772,2]
[312252627,1705710646463,-150.0,0.00024773,2]
[312252628,1705710646472,-150.0,0.00024773,2]
[312252629,1705710646481,-150.0,0.00024776,2]
[312252630,1705710646491,-1500.0,0.0002478,2]
[312252631,1705710646500,-150.0,0.0002478,2]
[312252632,1705710646509,-150.0,0.00024782,2]
[312252633,1705710646519,-157.28,0.00024784,2]
[312252634,1705710646528,-207.8715,0.00024799,2]
[312252635,1705710646537,-150.0,0.00024799,2]
[312252636,1705710646547,-152.2760135,0.000248,2]
[312252637,1705710646557,-6875.98592378,0.000248,2]
[312252638,1705710646567,-216.02414808,0.000248,2]
[312252639,1705710646577,-896.02680974,0.000248,2]
[312252640,1705710646586,-777.61547756,0.000248,2]
[312252641,1705710646595,-196.08220329,0.000248,9]
[312252642,1705710646605,-150.0,0.00024802,2]
[312252643,1705710646614,-150.0,0.00024808,2]
[312252644,1705710646623,-150.0,0.00024826,2]
[312252645,1705710646632,-150.0,0.00024828,2]
[312252646,1705710646642,-150.0,0.00024846,2]
[312252647,1705710646652,-920.0,0.00024849,2]
[312252648,1705710646661,-150.0,0.00024851,2]
[312252649,1705710646670,-150.0,0.00024851,2]
[312252650,1705710646679,-150.0,0.00024861,2]
[312252651,1705710646689,-153.49,0.0002487,2]
[312252652,1705710646698,-150.0,0.00024873,2]
[312252653,1705710646707,-500.0,0.00024882,2]
[312252654,1705710646716,-3118.8553669,0.00024883,2]
[312252655,1705710646726,-7686.1777859,0.00024883,2]
[312252656,1705710646735,-74772.4747506,0.00024883,2]
[312252657,1705710646744,-150.0,0.00024887,2]
[312252658,1705710646753,-509.8300884,0.00024899,2]
[312252659,1705710646763,-500.0,0.00024899,2]
[312252660,1705710646772,-500.0,0.00024899,2]
[312252661,1705710646781,-500.0,0.00024899,2]
[312252662,1705710646791,-500.0,0.00024899,2]
[312252663,1705710646801,-500.0,0.00024899,2]
[312252664,1705710646810,-500.0,0.00024899,2]
[312252665,1705710646820,-500.0,0.00024899,2]
[312252666,1705710646829,-500.0,0.00024899,2]
[312252667,1705710646839,-500.0,0.00024899,2]
[312252668,1705710646848,-500.0,0.00024899,2]
[312252669,1705710646857,-500.0,0.00024899,2]
[312252670,1705710646867,-500.0,0.00024899,2]
[312252671,1705710646875,-500.0,0.00024899,2]
[312252672,1705710646884,-500.0,0.00024899,2]
[312252673,1705710646894,-500.0,0.00024899,2]
[312252674,1705710646903,-500.0,0.00024899,2]
[312252675,1705710646913,-500.0,0.00024899,2]
[312252676,1705710646923,-500.0,0.00024899,2]
[312252677,1705710646932,-500.0,0.00024899,2]
[312252678,1705710646942,-500.0,0.00024899,2]
[312252679,1705710646952,-500.0,0.00024899,2]
[312252680,1705710646961,-500.0,0.00024899,2]
[312252681,1705710646970,-500.0,0.00024899,2]
[312252682,1705710646980,-519.05786511,0.00024899,2]
[312252683,1705710646989,-500.0,0.00024899,2]
[312252684,1705710646998,-500.0,0.00024899,2]
[312252685,1705710647008,-500.0,0.00024899,2]
[312252686,1705710647017,-203.93203535,0.00024899,2]
[312252687,1705710647026,-500.0,0.00024899,2]
[312252688,1705710647035,-500.0,0.00024899,2]
[312252689,1705710647044,-500.0,0.00024899,2]
[312252690,1705710647054,-500.0,0.00024899,2]
[312252691,1705710647064,-200.0,0.00024899,2]
[312252692,1705710647076,-500.0,0.00024899,2]
[312252693,1705710647085,-500.0,0.00024899,2]
[312252694,1705710647095,-500.0,0.00024899,2]
[312252695,1705710647104,-500.0,0.00024899,2]
[312252696,1705710647113,-407.43,0.00024899,2]
[312252697,1705710647123,-150.0,0.00024899,2]
[312252698,1705710647133,-150.0,0.00024899,2]
[312252699,1705710647143,-312527.3332429,0.000249,3]
[312252700,1705710647592,-504.021,0.000249,3]
[312252701,1705710648429,-500.0,0.00024657,2]
[312252702,1705710648439,-500.0,0.00024657,2]
[312252703,1705710648448,-992.26131224,0.000249,3]
[312252704,1705710648460,-34423.77959047,0.000249,3]
[312252705,1705710648471,-43457.53783744,0.000249,3]
[312252706,1705710648483,-107701.41485083,0.000249,3]
[312252707,1705710648495,-4989.85373047,0.000249,3]
[312252708,1705710648516,-521.4827576,0.00024656,2]
[312252709,1705710648526,-2191.9173424,0.000249,3]
[312252710,1705710649166,-22888.97907927,0.000249,3]
[312252711,1705710649218,-1495.225,0.000249,3]
[312252712,1705710649233,-1000.85569925,0.000249,3]
[312252713,1705710649541,-23965.8333,0.00024557,2]
[312252714,1705710649551,-500.0,0.00024657,2]
[312252715,1705710649560,-39211.62345979,0.000249,3]
[312252716,1705710649571,-3042.61271831,0.000249,3]
[312252717,1705710649583,-2175.58026736,0.000249,3]
[312252718,1705710649608,-280647.92805454,0.000249,3]
[312252719,1705710649618,-824275.70016826,0.000249,3]
[312252720,1705710650293,-363.07292143,0.00024656,2]
[312252721,1705710650303,-500.0,0.00024657,2]
[312252722,1705710650312,-500.0,0.00024657,2]
[312252723,1705710650322,-1175.1617949,0.000249,3]
[312252724,1705711033397,281.0,0.0003001,120]
[312252725,1705711247345,1004.80103479,0.00018695,2]
[312252726,1705711247384,19.80396823,0.00018695,2]
[312252771,1705711832377,-205.0,0.0002101,2]
[312252772,1705711832386,-204.0,0.0002101,2]
[312252773,1705711832395,-373.13,0.0002125,2]
[312252774,1705711832404,-150.0,0.00023,2]
[312252775,1705711832413,-71.17335493,0.00023038,2]
[312252776,1705711832424,-96.14147698,0.00023038,2]
[312252777,1705711832433,-337.45646413,0.0002308,2]
[312252778,1705711832444,-483.29353587,0.0002308,2]
[312252779,1705711832453,-250.0,0.0002308,2]
[312252780,1705711832462,-110.42356511,0.00023098,2]
[312252781,1705711832473,-426.34009598,0.00023098,2]
[312252782,1705711832497,-646.10174978,0.00023098,2]
[312252783,1705711832605,-2370.27400706,0.00023098,2]
[312252784,1705711832682,-450.0,0.00023098,2]
[312252785,1705711832794,-380.49190557,0.00023098,2]
[312252790,1705711838365,-7858.97464035,0.00023098,2]
[312252791,1705711838375,-512.29,0.00023099,2]
[312252792,1705711838384,-234.14,0.00023109,2]
[312252793,1705711838393,-150.0,0.00023136,2]
[312252794,1705711838403,-487.71,0.00023138,2]
[312252795,1705711838412,-1319.57,0.00023152,2]
[312252796,1705711838422,-155.67,0.00023171,2]
[312252797,1705711838431,-164.77,0.00023341,2]
[312252798,1705711838440,-157.28,0.00023351,2]
[312252799,1705711838450,-164.77,0.00023493,2]
[312252800,1705711838459,-250.0,0.000235,2]
[312252801,1705711838469,-373.13,0.00023514,2]
[312252802,1705711838478,-205.0,0.0002361,5]
[312252803,1705711838490,-156.39,0.00023625,2]
[312252804,1705711838501,-164.77,0.00023646,2]
[312252805,1705711838519,-160.92,0.00023754,2]
[312252806,1705711838533,-164.77,0.00023798,2]
[312252807,1705711838544,-167.76895407,0.000239,3]
[312252808,1705711838554,-256.96,0.000239,2]
[312252809,1705711838564,-352.54,0.000239,2]
[312252810,1705711838576,-419.33476208,0.00023902,2]
[312252811,1705711838586,-167.3148319,0.00023919,2]
[312252812,1705711838597,-1042.79,0.00023932,2]
[312252813,1705711838606,-1687.99,0.00023937,2]
[312252814,1705711838616,-1688.0,0.00023941,2]
[312252816,1705711838626,-164.77,0.0002395,2]
[312252818,1705711838636,-1688.0,0.00023955,2]
[312252820,1705711838646,-1687.98,0.00023971,2]
[312252822,1705711838655,-250.0,0.00024,2]
[312252824,1705711838665,-431.59040182,0.00024,2]
[312252826,1705711838675,-201.16205573,0.00024036,2]
[312252828,1705711838684,-256.96,0.00024037,2]
[312252829,1705711838693,-155.67,0.00024098,2]
[312252831,1705711838703,-164.77,0.00024102,2]
[312252834,1705711838713,-702.22266589,0.00024166,2]
[312252836,1705711838727,-9188.62060222,0.00024166,2]
[312252838,1705711838738,-11923.15673189,0.00024166,2]
[312252840,1705711838747,-485.81205303,0.00024174,2]
[312252842,1705711838757,-164.77,0.00024254,2]
[312252844,1705711838767,-160.92,0.00024324,2]
[312252846,1705711838776,-164.77,0.00024406,2]
[312252849,1705711838786,-495.58950919,0.00024408,2]
[312252851,1705711838795,-157.28,0.0002445,2]
[312252853,1705711838804,-250.0,0.000245,2]
[312252855,1705711838814,-587.6711,0.00024551,2]
[312252857,1705711838823,-1747.8624,0.00024557,2]
[312252859,1705711838832,-209.0,0.00024557,2]
[312252861,1705711838842,-2088.5668,0.00024557,2]
[312252863,1705711838851,-5000.0,0.00024557,2]
[312252865,1705711838861,-1886.47079907,0.00024557,2]
[312252867,1705711838870,-164.77,0.00024558,2]
[312252869,1705711838879,-200.0,0.0002458,2]
[312252870,1705711838888,-200.0,0.0002458,2]
[312252872,1705711838898,-91.23370326,0.00024596,2]
[312252875,1705711838910,-97.36084514,0.00024596,2]
[312252877,1705711838920,-356.4008579,0.00024643,2]
[312252879,1705711838929,-5251.2390294,0.00024649,2]
[312252881,1705711838939,-461.79828775,0.00024655,2]
[312252883,1705711838948,-156.24527716,0.00024655,2]
[312252885,1705711838957,-1040.28791122,0.00024655,2]
[312252887,1705711838967,-337.11641758,0.00024655,2]
[312252889,1705711838976,-155.41046091,0.00024655,2]
[312252891,1705711838986,-264.58511852,0.00024656,2]
[312252893,1705711838995,-7417.76449163,0.00024656,2]
[312252895,1705711839005,-2338.16574212,0.00024656,2]
[312252897,1705711839014,-500.0,0.00024656,2]
[312252899,1705711839027,-500.0,0.00024656,2]
[312252901,1705711839037,-500.0,0.00024656,2]
[312252904,1705711839046,-500.0,0.00024656,2]
[312252906,1705711839056,-500.0,0.00024656,2]
[312252907,1705711839065,-500.0,0.00024656,2]
[312252909,1705711839075,-500.0,0.00024656,2]
[312252910,1705711839085,-500.0,0.00024656,2]
[312252912,1705711839095,-500.0,0.00024656,2]
[312252914,1705711839104,-500.0,0.00024656,2]
[312252917,1705711839115,-500.0,0.00024656,2]
[312252919,1705711839124,-500.0,0.00024656,2]
[312252921,1705711839134,-500.0,0.00024656,2]
[312252923,1705711839143,-555.82,0.00024656,2]
[312252925,1705711839152,-317.28590505,0.00024657,4]
[312252927,1705711839162,-284.99354738,0.00024657,4]
[312252929,1705711839171,-220.13643505,0.00024657,4]
[312252931,1705711839180,-500.0,0.00024657,2]
[312252933,1705711839190,-500.0,0.00024657,2]
[312252935,1705711839199,-500.0,0.00024657,2]
[312252937,1705711839209,-500.0,0.00024657,2]
[312252939,1705711839219,-500.0,0.00024657,2]
[312252941,1705711839228,-500.0,0.00024657,2]
[312252942,1705711839238,-500.0,0.00024657,2]
[312252943,1705711839248,-500.0,0.00024657,2]
[312252944,1705711839257,-500.0,0.00024657,2]
[312252945,1705711839268,-500.0,0.00024657,2]
[312252946,1705711839277,-500.0,0.00024657,2]
[312252947,1705711839287,-346.12264505,0.00024657,2]
[312252948,1705711839296,-500.0,0.00024657,2]
[312252949,1705711839306,-500.0,0.00024657,2]
[312252950,1705711839315,-500.0,0.00024657,2]
[312252951,1705711839325,-500.0,0.00024657,2]
[312252952,1705711839334,-500.0,0.00024657,2]
[312252953,1705711839344,-500.0,0.00024657,2]
[312252954,1705711839357,-500.0,0.00024657,2]
[312252955,1705711839368,-474.90419186,0.00024657,2]
[312252956,1705711839378,-500.0,0.00024657,2]
[312252957,1705711839389,-500.0,0.00024657,2]
[312252958,1705711839398,-514.24812465,0.00024657,2]
[312252959,1705711839408,-500.0,0.00024657,2]
[312252960,1705711839417,-500.0,0.00024657,2]
[312252961,1705711839427,-500.0,0.00024657,2]
[312252962,1705711839436,-500.0,0.00024657,2]
[312252963,1705711839447,-505.78172434,0.00024657,2]
[312252964,1705711839457,-500.0,0.00024657,2]
[312252965,1705711839467,-293.00606349,0.00024657,2]
[312252966,1705711839476,-500.0,0.00024657,2]
[312252967,1705711839489,-500.0,0.00024657,2]
[312252968,1705711839499,-596.29,0.00024657,2]
[312252969,1705711839509,-500.0,0.00024657,2]
[312252970,1705711839518,-500.0,0.00024657,2]
[312252971,1705711839529,-500.0,0.00024657,2]
[312252972,1705711839538,-500.0,0.00024657,2]
[312252973,1705711839548,-500.0,0.00024657,2]
[312252974,1705711839558,-500.0,0.00024657,2]
[312252975,1705711839570,-500.0,0.00024657,2]
[312252976,1705711839582,-500.0,0.00024657,2]
[312252977,1705711839591,-500.0,0.00024657,2]
[312252978,1705711839602,-500.0,0.00024657,2]
[312252979,1705711839611,-500.0,0.00024657,2]
[312252980,1705711839621,-500.0,0.00024657,2]
[312252981,1705711839630,-327.84559732,0.00024657,2]
[312252982,1705711839640,-500.0,0.00024657,2]
[312252983,1705711839649,-500.0,0.00024657,2]
[312252984,1705711839659,-500.0,0.00024657,2]
[312252985,1705711839668,-500.0,0.00024657,2]
[312252986,1705711839678,-500.0,0.00024657,2]
[312252987,1705711839687,-185.77766336,0.00024657,2]
[312252988,1705711839718,-314.22233664,0.00024657,2]
[312252989,1705711839728,-500.0,0.00024657,2]
[312252990,1705711839737,-500.0,0.00024657,2]
[312252991,1705711839746,-500.0,0.00024657,2]
[312252992,1705711839756,-500.0,0.00024657,2]
[312252993,1705711839765,-500.0,0.00024657,2]
[312252994,1705711839775,-500.0,0.00024657,2]
[312252995,1705711839786,-500.0,0.00024657,2]
[312252996,1705711839798,-644.43548447,0.00024657,2]
[312252997,1705711839809,-500.0,0.00024657,2]
[312252998,1705711839819,-500.0,0.00024657,2]
[312252999,1705711839830,-500.0,0.00024657,2]
[312253000,1705711839839,-500.0,0.00024657,2]
[312253001,1705711839851,-500.0,0.00024657,2]
[312253002,1705711839861,-441.0954612,0.00024657,2]
[312253003,1705711839870,-500.0,0.00024657,2]
[312253004,1705711839881,-500.0,0.00024657,2]
[312253005,1705711839890,-500.0,0.00024657,2]
[312253006,1705711839902,-500.0,0.00024657,2]
[312253007,1705711839913,-500.0,0.00024657,2]
[312253008,1705711839924,-500.0,0.00024657,2]
[312253009,1705711839935,-500.0,0.00024657,2]
[312253010,1705711839946,-269.45330703,0.00024657,2]
[312253011,1705711839957,-500.0,0.00024657,2]
[312253012,1705711839968,-500.0,0.00024657,2]
[312253013,1705711839978,-500.0,0.00024657,2]
[312253014,1705711839987,-500.0,0.00024657,2]
[312253015,1705711839998,-500.0,0.00024657,2]
[312253016,1705711840008,-500.0,0.00024657,2]
[312253017,1705711840018,-500.0,0.00024657,2]
[312253018,1705711840028,-500.0,0.00024657,2]
[312253019,1705711840037,-500.0,0.00024657,2]
[312253020,1705711840047,-500.0,0.00024657,2]
[312253021,1705711840057,-500.0,0.00024657,2]
[312253022,1705711840066,-500.0,0.00024657,2]
[312253023,1705711840077,-500.0,0.00024657,2]
[312253024,1705711840086,-500.0,0.00024657,2]
[312253025,1705711840095,-500.0,0.00024657,2]
[312253026,1705711840105,-500.0,0.00024657,2]
[312253027,1705711840115,-500.0,0.00024657,2]
[312253028,1705711840125,-500.0,0.00024657,2]
[312253029,1705711840135,-500.0,0.00024657,2]
[312253030,1705711840145,-500.0,0.00024657,2]
[312253031,1705711840154,-500.0,0.00024657,2]
[312253032,1705711840164,-500.0,0.00024657,2]
[312253033,1705711840173,-500.0,0.00024657,2]
[312253034,1705711840183,-500.0,0.00024657,2]
[312253035,1705711840193,-500.0,0.00024657,2]